fUSD/lending_fUSD_20251028
["ID","MTS","AMOUNT","RATE_DAILY","PERIOD"]
[392585214,1761691832159,-4147.31,0.00022562,2]
[392585216,1761691832169,-595.37131296,0.00022929,2]
[392585218,1761691832180,-617.40005154,0.00023477,2]
[392585220,1761691832189,-1313.0,0.00023884,2]
[392585222,1761691832198,-1593.0,0.00023884,2]
[392585224,1761691832209,-3491.0,0.00023884,2]
[392585226,1761691832219,-6625.0,0.00023884,2]
[392585227,1761691832229,-284.73851092,0.00024025,2]
[392585228,1761691832239,-168.0,0.00024758,2]
[392585229,1761691832249,-475.56800726,0.00024795,2]
[392585230,1761691832259,-315.863,0.000248,8]
[392585231,1761691832269,-159.23,0.00025528,30]
[392585232,1761691832278,-253.52,0.00026606,2]
[392585233,1761691832288,-572.48,0.00026655,2]
[392585234,1761691832299,-368.76,0.00026676,2]
[392585235,1761691832308,-758.468,0.00026884,2]
[392585236,1761691832318,-2072.14692577,0.00026884,2]
[392585237,1761691832342,-692.31212072,0.00026884,2]
[392585239,1761691837673,-2090.0,0.00023884,2]
[392585240,1761691837685,-2875.5170958,0.00023884,2]
[392585241,1761691837696,-568.40851396,0.00023884,2]
[392585242,1761691837708,-977.99139024,0.00023884,2]
[392585243,1761691837719,-687.80860976,0.00026884,2]
[392585244,1761691837730,-38.73234375,0.00026884,2]
[392585245,1761691837739,-1574.42362226,0.00026884,2]
[392585246,1761691837888,-281.55,0.00026884,2]
[392585256,1761691839771,-709.97837774,0.00026884,2]
[392585257,1761691839782,-687.90072226,0.00026884,2]
[392585258,1761691840086,-652.40486657,0.00026884,2]
[392585259,1761691840099,-1756.0,0.00026884,2]
[392585260,1761691840129,-1699.048,0.00026884,2]
[392585265,1761691842821,-333.44283979,0.00026884,2]
[392585266,1761691842834,-1334.20357138,0.00026884,2]
[392585267,1761691842844,-154.05819528,0.00027104,2]
[392585268,1761691842853,-200.0,0.00027209,2]
[392585269,1761691842863,-150.0,0.00027277,2]
[392585270,1761691842872,-500.0,0.00027397,2]
[392585271,1761691842881,-500.0,0.00027397,2]
[392585272,1761691842891,-500.0,0.00027671,2]
[392585273,1761691842902,-500.0,0.00027671,2]
[392585274,1761691842913,-500.0,0.00027671,2]
[392585276,1761691842924,-500.0,0.00027671,2]
[392585277,1761691843176,-500.0,0.00027671,2]
[392585278,1761691843186,-500.0,0.00027671,2]
[392585279,1761691843195,-500.0,0.00027671,2]
[392585280,1761691843204,-500.0,0.00027671,2]
[392585281,1761691843214,-500.0,0.00027671,2]
[392585282,1761691843223,-500.0,0.00027671,2]
[392585283,1761691843232,-500.0,0.00027671,2]
[392585284,1761691843242,-500.0,0.00027671,2]
[392585285,1761691843251,-500.0,0.00027671,2]
[392585286,1761691843260,-172.0,0.00027671,2]
[392585287,1761691843269,-500.0,0.00027671,2]
[392585288,1761691843278,-150.0,0.00027671,2]
[392585289,1761691843287,-150.0,0.00027671,2]
[392585290,1761691843296,-205.0889401,0.00027671,2]
[392585291,1761691843305,-500.0,0.00027671,2]
[392585292,1761691843314,-500.0,0.00027671,2]
[392585293,1761691843323,-500.0,0.00027671,2]
[392585294,1761691843333,-500.0,0.00027671,2]
[392585295,1761691843342,-500.0,0.00027808,2]
[392585296,1761691843351,-200.0,0.00027808,2]
[392585297,1761691843360,-500.0,0.00027808,2]
[392585298,1761691843369,-500.0,0.00027808,2]
[392585299,1761691843379,-500.0,0.00027945,2]
[392585300,1761691843388,-500.0,0.00027945,2]
[392585301,1761691843396,-500.0,0.00027945,2]
[392585302,1761691843406,-500.0,0.00027945,2]
[392585303,1761691843415,-500.0,0.00027945,2]
[392585304,1761691843424,-2505.920217,0.00028,2]
[392585305,1761691843433,-500.0,0.00028082,2]
[392585306,1761691843442,-300.0,0.00028082,2]
[392585307,1761691843452,-150.0,0.00028181,2]
[392585308,1761691843461,-150.0,0.00028181,2]
[392585309,1761691843471,-150.0,0.00028181,2]
[392585310,1761691843480,-150.0,0.00028181,2]
[392585311,1761691843490,-500.0,0.00028181,2]
[392585312,1761691843500,-500.0,0.00028181,2]
[392585313,1761691843514,-270.57637057,0.00028181,2]
[392585314,1761691843524,-150.0,0.00028181,2]
[392585315,1761691843533,-150.0,0.00028181,2]
[392585316,1761691843543,-500.0,0.00028181,2]
[392585317,1761691843553,-150.0,0.00028181,2]
[392585318,1761691843563,-249.5869584,0.00028181,2]
[392585319,1761691843575,-150.0,0.00028181,2]
[392585320,1761691843585,-500.0,0.00028181,2]
[392585321,1761691843596,-624.16019572,0.00028181,2]
[392585322,1761691843606,-150.0,0.00028181,2]
[392585323,1761691843615,-150.0,0.00028181,2]
[392585324,1761691843625,-150.0,0.00028181,2]
[392585325,1761691843635,-159.23,0.00028215,30]
[392585326,1761691843645,-500.0,0.00028219,2]
[392585327,1761691843655,-500.0,0.00028219,2]
[392585328,1761691843665,-500.0,0.00028219,2]
[392585329,1761691843675,-150.0,0.00028318,2]
[392585330,1761691843685,-500.0,0.00028318,2]
[392585331,1761691843695,-500.0,0.00028318,2]
[392585332,1761691843705,-150.0,0.00028318,2]
[392585333,1761691843715,-150.0,0.00028318,2]
[392585334,1761691843725,-500.0,0.00028318,2]
[392585335,1761691843734,-150.0,0.00028318,2]
[392585336,1761691843744,-150.0,0.00028318,2]
[392585337,1761691843755,-150.0,0.00028318,2]
[392585338,1761691843765,-150.0,0.00028318,2]
[392585339,1761691843774,-500.0,0.00028356,2]
[392585340,1761691843785,-1000.0,0.000284,2]
[392585341,1761691843795,-150.0,0.00028455,2]
[392585342,1761691843804,-500.0,0.00028455,2]
[392585343,1761691843815,-580.37536372,0.00028455,2]
[392585344,1761691843824,-150.0,0.00028455,2]
[392585345,1761691843834,-240.00564482,0.00028455,2]
[392585346,1761691843843,-500.0,0.00028455,2]
[392585347,1761691843853,-150.0,0.00028455,2]
[392585348,1761691843862,-212.37533984,0.00028455,2]
[392585349,1761691843872,-150.0,0.00028455,2]
[392585350,1761691843883,-150.0,0.00028455,2]
[392585351,1761691843893,-500.0,0.00028493,2]
[392585352,1761691843902,-500.0,0.00028493,2]
[392585353,1761691843912,-500.0,0.00028493,2]
[392585354,1761691843922,-1500.0,0.000285,2]
[392585355,1761691843933,-150.0,0.00028592,2]
[392585356,1761691843943,-500.0,0.00028592,2]
[392585357,1761691843953,-252.2740177,0.00028592,2]
[392585358,1761691843963,-500.0,0.00028592,2]
[392585359,1761691843972,-150.0,0.00028592,2]
[392585360,1761691843982,-150.0,0.00028592,2]
[392585361,1761691843992,-150.0,0.00028592,2]
[392585362,1761691844002,-198.01210082,0.0002863,2]
[392585363,1761691844012,-4058.7274,0.00028667,2]
[392585364,1761691844022,-555.72326612,0.00028667,2]
[392585365,1761691844031,-150.0,0.00028729,2]
[392585366,1761691844041,-500.0,0.00028729,2]
[392585367,1761691844050,-200.0,0.00028729,2]
[392585368,1761691844060,-296.98457547,0.00028729,2]
[392585369,1761691844069,-249.18337873,0.00028729,2]
[392585370,1761691844079,-150.0,0.00028729,2]
[392585371,1761691844089,-500.0,0.00028767,2]
[392585372,1761691844099,-500.0,0.00028767,2]
[392585373,1761691844112,-500.0,0.00028866,2]
[392585374,1761691844122,-1500.0,0.00029,2]
[392585375,1761691844131,-635.38390301,0.00029003,2]
[392585376,1761691844141,-500.0,0.00029041,2]
[392585377,1761691844151,-500.0,0.00029041,2]
[392585378,1761691844161,-500.0,0.00029315,2]
[392585379,1761691844170,-500.0,0.00029315,2]
[392585380,1761691844181,-1500.0,0.000295,2]
[392585381,1761691844192,-150.0,0.00029551,2]
[392585382,1761691844202,-500.0,0.00029589,2]
[392585383,1761691844211,-500.0,0.00029589,2]
[392585384,1761691844222,-7525.9806741,0.00029643,2]
[392585385,1761691844231,-150.0,0.00029649,2]
[392585386,1761691844240,-1425.0,0.00029652,2]
[392585387,1761691844250,-200.0,0.00029661,2]
[392585388,1761691844259,-736.89584246,0.000297,2]
[392585389,1761691844269,-1000.0,0.000297,2]
[392585390,1761691844278,-2500.0,0.000297,2]
[392585391,1761691844288,-1662.56615101,0.000297,2]
[392585392,1761691844297,-150.0,0.00029751,2]
[392585393,1761691844307,-157.07396898,0.00029761,15]
[392585394,1761691844316,-1425.0,0.00029786,2]
[392585395,1761691844326,-40748.2133271,0.0002979,2]
[392585396,1761691844335,-5000.0,0.0002979,2]
[392585397,1761691844344,-1662.56615101,0.00029798,2]
[392585398,1761691844354,-500.0,0.00029799,3]
[392585399,1761691844364,-500.0,0.00029799,3]
[392585400,1761691844374,-313.20837644,0.00029799,3]
[392585401,1761691844384,-500.0,0.00029799,3]
[392585402,1761691844394,-1585.0452,0.000298,2]
[392585403,1761691844403,-33210.3218,0.000298,2]
[392585404,1761691844412,-197.67200408,0.000298,2]
[392585405,1761691844422,-967.9606,0.000298,2]
[392585406,1761691844431,-193138.7178,0.000298,2]
[392585407,1761691844441,-1000.0,0.000298,2]
[392585408,1761691844452,-189.13202782,0.000298,2]
[392585409,1761691844462,-151.0,0.0002985,7]
[392585410,1761691844472,-10187.0533318,0.00029852,2]
[392585411,1761691844482,-10187.0533318,0.00029861,2]
[392585412,1761691844491,-500.0,0.00029863,2]
[392585413,1761691844501,-500.0,0.00029863,2]
[392585414,1761691844510,-71309.3733224,0.0002987,2]
[392585415,1761691844521,-1425.0,0.00029871,2]
[392585416,1761691844530,-500.0,0.00029873,5]
[392585417,1761691844539,-501.71292426,0.00029873,5]
[392585418,1761691844548,-175.14364674,0.00029873,5]
[392585419,1761691844558,-500.0,0.00029873,5]
[392585420,1761691844567,-500.0,0.00029873,5]
[392585421,1761691844577,-500.0,0.00029873,2]
[392585422,1761691844586,-500.0,0.00029873,5]
[392585423,1761691844595,-4193.2907962,0.00029873,2]
[392585424,1761691844605,-4920.3345258,0.00029873,2]
[392585425,1761691844615,-500.0,0.0002988,3]
[392585426,1761691844624,-50935.2666588,0.0002988,2]
[392585427,1761691844634,-44646.7805812,0.0002988,2]
[392585428,1761691844643,-3491.0,0.00029884,2]
[392585429,1761691844652,-6463.0,0.00029884,2]
[392585430,1761691844661,-10187.0533318,0.00029888,2]
[392585431,1761691844671,-7441.13009686,0.00029888,2]
[392585432,1761691844680,-71309.3733224,0.0002989,2]
[392585433,1761691844689,-188410.17836038,0.0002989,2]
[392585436,1761691846207,-150.0,0.00027671,2]
[392585437,1761691846217,-150.0,0.00027671,2]
[392585438,1761691846228,-150.0,0.00027808,2]
[392585439,1761691846237,-200.0,0.00027945,2]
[392585440,1761691846247,-158.13842488,0.00028082,2]
[392585444,1761691866063,2500.0,0.00029815,120]
[392585445,1761691866186,339.46547378,0.00027456,120]
[392585446,1761691870007,2565.8226609,0.00029815,120]
[392585464,1761693018583,160.59,0.00014205,2]
[392585483,1761693037901,-160.59,0.00015981,2]
[392585484,1761693037911,-160.59,0.00017757,2]
[392585485,1761693037920,-160.59,0.00019532,2]
[392585486,1761693037932,-160.59,0.00021308,2]
[392585487,1761693037944,-3072.031,0.00022315,2]
[392585488,1761693037953,-160.59,0.00023084,2]
[392585489,1761693037963,-160.59,0.00024859,2]
[392585490,1761693037972,-476.88268571,0.00024923,2]
[392585491,1761693037982,-369.87116433,0.00025,2]
[392585492,1761693037991,-250.0,0.00026273,2]
[392585493,1761693038000,-160.59,0.00026635,2]
[392585494,1761693038010,-154.05819528,0.00027087,2]
[392585495,1761693038019,-150.0,0.00027104,2]
[392585496,1761693038028,-500.0,0.00027397,2]
[392585497,1761693038038,-500.0,0.00027397,2]
[392585498,1761693038047,-300.0,0.00027416,2]
[392585499,1761693038057,-300.0,0.00027416,2]
[392585500,1761693038066,-300.0,0.00027416,2]
[392585501,1761693038075,-300.0,0.00027416,2]
[392585502,1761693038085,-319.16479733,0.00027416,2]
[392585503,1761693038095,-500.0,0.00027671,2]
[392585504,1761693038105,-500.0,0.00027671,2]
[392585505,1761693038114,-500.0,0.00027945,2]
[392585506,1761693038123,-500.0,0.00027945,2]
[392585507,1761693038133,-1688.0,0.000282,2]
[392585508,1761693038142,-366.98174761,0.00028219,9]
[392585509,1761693038152,-500.0,0.00028219,2]
[392585510,1761693038162,-500.0,0.00028219,2]
[392585512,1761693038171,-3117.87,0.00028219,2]
[392585514,1761693038181,-2435.58,0.00028219,2]
[392585516,1761693038190,-160.59,0.00028411,2]
[392585518,1761693038200,-1664.29,0.00028442,2]
[392585520,1761693038209,-500.0,0.00028493,2]
[392585522,1761693038218,-37.35434219,0.00028493,2]
[392585527,1761693038256,-462.64565781,0.00028493,2]
[392585530,1761693038265,-153.13,0.00028516,2]
[392585532,1761693038275,-150.0,0.00028516,2]
[392585535,1761693038285,-500.0,0.00028767,2]
[392585538,1761693038295,-500.0,0.00028767,2]
[392585541,1761693038305,-172.24,0.00028805,2]
[392585543,1761693038316,-250.0,0.00028807,2]
[392585546,1761693038326,-1000.0,0.00028831,2]
[392585549,1761693038336,-610.0,0.00028871,2]
[392585552,1761693038346,-500.0,0.00029,3]
[392585555,1761693038356,-500.0,0.00029041,2]
[392585558,1761693038366,-500.0,0.00029041,2]
[392585561,1761693038376,-159.26,0.00029105,30]
[392585563,1761693038386,-153.13,0.00029274,2]
[392585566,1761693038395,-1055.5687486,0.00029292,5]
[392585568,1761693038403,-1804.98069133,0.00029292,5]
[392585570,1761693038412,-500.0,0.00029315,2]
[392585572,1761693038421,-500.0,0.00029315,2]
[392585574,1761693038430,-155.387883,0.00029517,2]
[392585577,1761693038449,-1484.243536,0.00029517,2]
[392585579,1761693038459,-500.0,0.00029589,2]
[392585581,1761693038470,-500.0,0.00029589,2]
[392585582,1761693038485,-4064.6282,0.000296,2]
[392585583,1761693038495,-1425.0,0.00029637,2]
[392585584,1761693038504,-150.0,0.00029649,2]
[392585585,1761693038514,-200.0,0.00029661,2]
[392585586,1761693038523,-252.691,0.0002969,23]
[392585587,1761693038533,-3262.0944,0.000297,2]
[392585588,1761693038543,-70392.9144,0.000297,2]
[392585589,1761693038553,-1000.0,0.000297,2]
[392585590,1761693038562,-2378.24342099,0.000297,2]
[392585655,1761693040139,-417.42802501,0.000297,2]
[392585656,1761693040149,-2440.03197499,0.000297,31]
[392585657,1761693040161,-355.63947101,0.000297,31]
[392585658,1761693040171,-450.191946,0.000297,2]
[392585659,1761693040180,-450.191946,0.000297,31]
[392585660,1761693040193,-150.0,0.000297,2]
[392585661,1761693040202,-150.0,0.000297,2]
[392585662,1761693040211,-150.0,0.000297,2]
[392585663,1761693040221,-759.20105349,0.00029718,2]
[392585664,1761693040230,-1425.0,0.00029731,2]
[392585665,1761693040240,-1425.0,0.00029737,2]
[392585666,1761693040250,-155.387883,0.0002974,31]
[392585667,1761693040259,-1484.243536,0.0002974,31]
[392585668,1761693040269,-2795.671446,0.0002974,15]
[392585669,1761693040279,-450.191946,0.0002974,15]
[392585670,1761693040289,-1425.0,0.00029761,2]
[392585671,1761693040298,-1000.0,0.00029761,2]
[392585672,1761693040308,-2500.0,0.0002978,2]
[392585673,1761693040318,-1000.0,0.0002978,2]
[392585674,1761693040328,-1484.243536,0.0002979,15]
[392585675,1761693040338,-155.387883,0.0002979,15]
[392585676,1761693040348,-500.0,0.00029799,3]
[392585677,1761693040358,-500.0,0.00029799,3]
[392585678,1761693040367,-500.0,0.00029799,3]
[392585679,1761693040377,-500.0,0.00029799,3]
[392585680,1761693040386,-500.0,0.00029799,3]
[392585681,1761693040399,-500.0,0.00029799,3]
[392585682,1761693040408,-500.0,0.00029799,3]
[392585683,1761693040419,-354.0,0.00029799,3]
[392585686,1761693040615,-500.0,0.00029799,3]
[392585687,1761693040627,-169.43314638,0.000298,2]
[392585688,1761693040637,-5000.0,0.000298,2]
[392585689,1761693040649,-1442.79682519,0.00029817,2]
[392585690,1761693040659,-1425.0,0.00029834,2]
[392585691,1761693040669,-150.0,0.00029837,2]
[392585692,1761693040678,-150.0,0.00029837,2]
[392585693,1761693040687,-13956.3061755,0.00029849,2]
[392585694,1761693040696,-332.3630219,0.00029849,2]
[392585695,1761693040705,-1144.4213025,0.00029849,2]
[392585696,1761693040715,-500.0,0.00029863,2]
[392585697,1761693040728,-500.0,0.00029863,2]
[392585698,1761693040737,-9087.61767399,0.0002987,2]
[392585699,1761693040747,-348.9,0.00029873,2]
[392585700,1761693040757,-505.45411216,0.00029873,5]
[392585701,1761693040768,-500.0,0.00029873,5]
[392585702,1761693040778,-9087.61767399,0.00029879,2]
[392585703,1761693040788,-500.0,0.0002988,3]
[392585704,1761693040798,-9159.73492698,0.0002988,2]
[392585705,1761693040994,-36278.35344292,0.0002988,2]
[392585706,1761693041004,-200.0,0.0002989,2]
[392585707,1761693041013,-837.92993,0.0002989,2]
[392585708,1761693041023,-4314.6275651,0.0002989,2]
[392585709,1761693041431,-742.3978027,0.0002989,2]
[392585710,1761693041559,-115926.02678614,0.0002989,2]
[392585711,1761693041600,-399.83,0.0002989,2]
[392585712,1761693041612,-566.5,0.0002989,2]
[392585720,1761693046174,-2500.0,0.0002978,2]
[392585721,1761693046185,-1342.8440621,0.00029849,2]
[392585722,1761693046194,-7932.9776883,0.0002989,2]
[392585725,1761693079824,1621.0,0.000315,120]
[392585726,1761693144165,2285.4,0.00031507,120]
[392585727,1761693144485,154.12410006,0.000315,120]
[392585728,1761693466972,4385.0,0.000315,120]
[392585729,1761693902819,500.0,0.000315,120]
[392585730,1761693920064,500.0,0.000315,120]
[392585732,1761693932182,500.0,0.000315,120]
[392585733,1761693943428,500.0,0.000315,120]
[392585734,1761693955346,500.0,0.000315,120]
[392585735,1761693966518,500.0,0.000315,120]
[392585736,1761693977654,500.0,0.000315,120]
[392585737,1761693989099,500.0,0.000315,120]
[392585738,1761693999342,209.0,0.000315,120]
[392585743,1761694095189,540.0,0.00031507,120]
[392585744,1761694136628,500.0,0.00031507,120]
[392585745,1761694156840,200.0,0.00031506,120]
[392585746,1761694158126,500.0,0.00031507,120]
[392585751,1761694186274,500.0,0.00031507,120]
[392585752,1761694207283,-300.0,0.00014999,2]
[392585753,1761694207307,-353.9219872,0.00014999,2]
[392585757,1761694232259,-846.0780128,0.00014999,2]
[392585759,1761694232269,-3153.9219872,0.00015,2]
[392585781,1761694238216,-4824.656,0.00015,2]
[392585782,1761694238347,-601.04126479,0.00015,2]
[392585827,1761694240294,-859.21764383,0.00015,2]
[392585828,1761694240308,-63538.38640369,0.00015,2]
[392585829,1761694240319,-30331.72998111,0.00015,2]
[392585830,1761694240333,-124915.85933669,0.00015,2]
[392585831,1761694240342,-1330.05292088,0.0001509,2]
[392585832,1761694240351,-364.81472534,0.0001519,2]
[392585833,1761694240361,-529.0,0.00016499,2]
[392585834,1761694240370,-1330.0529208,0.00016781,2]
[392585835,1761694240379,-250.0,0.00017,2]
[392585836,1761694240389,-1330.0529208,0.00018472,2]
[392585837,1761694240399,-1330.0529208,0.00020163,2]
[392585838,1761694240408,-440.96703617,0.000215,2]
[392585839,1761694240418,-1330.0529208,0.00021854,2]
[392585840,1761694240432,-1330.0529208,0.00023546,2]
[392585841,1761694240443,-168.0,0.00025,7]
[392585842,1761694240453,-1330.0529208,0.00025237,2]
[392585843,1761694240464,-158.01,0.00025835,2]
[392585844,1761694240473,-168.0,0.0002589,7]
[392585845,1761694240483,-168.0,0.00026927,2]
[392585846,1761694240493,-1330.0529208,0.00026928,2]
[392585847,1761694240503,-168.0,0.00027338,2]
[392585848,1761694240513,-500.0,0.00027397,2]
[392585849,1761694240522,-500.0,0.00027397,2]
[392585850,1761694240532,-500.0,0.00027671,2]
[392585851,1761694240542,-500.0,0.00027671,2]
[392585852,1761694240551,-500.0,0.00027945,2]
[392585853,1761694240561,-500.0,0.00027945,2]
[392585854,1761694240571,-6028.00065824,0.00028,2]
[392585855,1761694240580,-500.0,0.00028219,2]
[392585856,1761694240591,-500.0,0.00028219,2]
[392585857,1761694240603,-168.0,0.00028273,2]
[392585858,1761694240613,-500.0,0.00028493,2]
[392585859,1761694240623,-500.0,0.00028493,2]
[392585860,1761694240632,-2000.0,0.000285,2]
[392585862,1761694240642,-1330.0529208,0.00028619,2]
[392585863,1761694240653,-168.0,0.00028625,2]
[392585864,1761694240663,-500.0,0.00028767,2]
[392585865,1761694240675,-500.0,0.00028767,2]
[392585866,1761694240684,-476.88268571,0.00028874,2]
[392585867,1761694240693,-210.02,0.00028936,2]
[392585868,1761694240703,-3519.6,0.00029003,2]
[392585869,1761694240714,-500.0,0.00029041,2]
[392585870,1761694240723,-500.0,0.00029041,2]
[392585871,1761694240733,-202.152,0.00029089,21]
[392585872,1761694240743,-17678.53,0.0002909,2]
[392585873,1761694240752,-168.0,0.00029151,2]
[392585874,1761694240761,-158.01,0.00029259,2]
[392585875,1761694240771,-500.0,0.00029315,2]
[392585876,1761694240780,-500.0,0.00029315,2]
[392585877,1761694240788,-500.0,0.00029589,2]
[392585878,1761694240797,-500.0,0.00029589,2]
[392585879,1761694240807,-698.27494,0.0002959,2]
[392585880,1761694240820,-285.91,0.00029642,2]
[392585881,1761694240830,-166.66,0.00029767,2]
[392585882,1761694240839,-1000.0,0.00029779,2]
[392585883,1761694240849,-224.9593687,0.0002979,2]
[392585884,1761694240858,-156.42488379,0.0002979,15]
[392585885,1761694240868,-1000.0,0.0002979,2]
[392585886,1761694240877,-2500.0,0.0002979,2]
[392585887,1761694240886,-150.0,0.000298,2]
[392585888,1761694240896,-169.43314635,0.000298,2]
[392585889,1761694240905,-5000.0,0.000298,2]
[392585890,1761694240915,-200.0,0.00029863,2]
[392585891,1761694240924,-150.0,0.00029863,2]
[392585892,1761694240934,-500.0,0.00029863,2]
[392585893,1761694240943,-500.0,0.00029863,2]
[392585894,1761694240953,-8136.1277151,0.0002987,2]
[392585895,1761694240962,-3628.2752155,0.0002987,2]
[392585896,1761694240972,-150.0,0.0002987,2]
[392585897,1761694240982,-150.0,0.0002987,2]
[392585898,1761694240992,-151.07445959,0.0002987,2]
[392585899,1761694241001,-150.0,0.0002987,2]
[392585900,1761694241011,-150.48023033,0.0002987,2]
[392585901,1761694241022,-150.0,0.0002987,2]
[392585902,1761694241031,-251.33821867,0.0002987,2]
[392585903,1761694241041,-150.0,0.0002987,2]
[392585904,1761694241050,-150.0,0.0002987,2]
[392585905,1761694241059,-150.0,0.0002987,2]
[392585906,1761694241069,-150.96793118,0.0002987,2]
[392585907,1761694241079,-151.37609556,0.0002987,2]
[392585908,1761694241088,-150.0,0.0002987,2]
[392585909,1761694241097,-200.0,0.0002987,2]
[392585910,1761694241107,-150.0,0.0002987,2]
[392585911,1761694241117,-500.0,0.00029873,5]
[392585912,1761694241126,-63020.23057045,0.0002988,2]
[392585916,1761694243327,-5000.0,0.000298,2]
[392585917,1761694243338,-21498.57952635,0.0002988,2]
[392585918,1761694243349,-9390.97889965,0.00029889,2]
[392585919,1761694243359,-500.0,0.00029889,3]
[392585920,1761694243368,-500.0,0.00029889,3]
[392585921,1761694243378,-500.0,0.00029889,3]
[392585922,1761694243388,-2035.83871595,0.0002989,2]
[392585923,1761694243399,-864.66933463,0.0002989,2]
[392585931,1761694246293,-13763.0228977,0.0002989,2]
[392585932,1761694246505,-5000.0,0.0002989,2]
[392585933,1761694246517,-6606.43889354,0.0002989,2]
[392585935,1761694251737,-314.7698014,0.00014999,2]
[392585936,1761694251759,-521.99604028,0.00014999,2]
[392585937,1761694251780,-74.41462422,0.00014999,2]
[392585938,1761694253573,-373.20583495,0.00014999,2]
[392585939,1761694253596,-256.36665031,0.00014999,2]
[392585940,1761694255240,-247.16987226,0.00014999,2]
[392585941,1761694255265,-10.72230751,0.00014999,2]
[392585942,1761694258897,-290.05778717,0.00014999,2]
[392585943,1761694258923,-500.0,0.00014999,2]
[392585944,1761694258948,-6.91388482,0.00014999,2]
[392585945,1761694260718,-250.0,0.00014999,2]
[392585946,1761694263551,-243.08611518,0.00014999,2]
[392585947,1761694263580,-26.51942876,0.00014999,2]
[392585948,1761694266805,-323.48057124,0.00014999,2]
[392585949,1761694266833,-130.09751013,0.00014999,2]
[392585950,1761694270842,-180.8195341,0.00014999,2]
[392585951,1761694273723,-189.08295577,0.00014999,2]
[392585952,1761694273749,-500.0,0.00014999,2]
[392585953,1761694273775,-9.99704423,0.00014999,2]
[392585954,1761694277186,-489.17961144,0.00014999,2]
[392585955,1761694278944,-0.82334433,0.00014999,2]
[392585956,1761694278977,-308.14665567,0.00014999,2]
[392585957,1761694281796,-191.85334433,0.00014999,2]
[392585958,1761694281823,-50.55528157,0.00014999,2]
[392585959,1761694285081,-449.44471843,0.00014999,2]
[392585960,1761694285109,-500.0,0.00014999,2]
[392585961,1761694285135,-59.75139956,0.00014999,2]
[392585962,1761694296387,331.83,0.00013699,2]
[392585968,1761695432662,-331.83,0.00020187,2]
[392585969,1761695432672,-300.0,0.0002388,2]
[392585970,1761695432683,-1200.0,0.0002388,2]
[392585971,1761695432692,-1167.17,0.00023881,2]
[392585972,1761695432735,-32.83,0.00023881,2]
[392585973,1761695432745,-381.0320027,0.00023881,2]
[392585976,1761695439730,-1130.9,0.00023881,2]
[392585977,1761695439998,-1.6e-07,0.00023881,2]
[392585978,1761695440072,-88.06799714,0.00023881,2]
[392585979,1761695440082,-179.15675323,0.00023881,2]
[392585984,1761695442776,-320.84324677,0.00023881,2]
[392585985,1761695442788,-195.09860044,0.00023881,2]
[392585986,1761695442797,-367.02461312,0.00023882,2]
[392585987,1761695442808,-249.59413967,0.00023882,2]
[392585988,1761695445531,-323.40586033,0.00023882,2]
[392585989,1761695445542,-3417.0,0.00023882,2]
[392585990,1761695445552,-3813.087,0.00023882,2]
[392585991,1761695445562,-3317.99014237,0.00023882,2]
[392585992,1761695445575,-171.00985763,0.00023882,2]
[392585993,1761695445585,-724.92,0.00023882,2]